bitfinex/quotes_ETHUSD_20240828
["timestamp","ask_amount","ask_price","bid_price","bid_amount"]
[1724860930517,7.00095,2499.5,2498.9,4.55171]
[1724860930812,4.00104,2499.4,2498.9,4.55171]
[1724860930976,4.00104,2499.4,2498.9,0.55]
[1724860931197,4.0012,2499.3,2498.9,0.55]
[1724860931627,4.0012,2499.3,2498.9,1.240786]
[1724860931923,4.00104,2499.4,2498.9,1.240786]
[1724860932121,4.00072,2499.6,2499.0,4.00153]
[1724860932319,4.00072,2499.6,2499.1,0.55]
[1724860932320,4.00098,2499.4,2499.1,0.55]
[1724860932525,4.00098,2499.4,2498.9,1.240786]
[1724860932526,4.00115,2499.3,2498.9,1.240786]
[1724860932889,4.00098,2499.4,2498.9,1.240786]
[1724860933222,4.00098,2499.4,2498.8,6.35786]
[1724860933223,4.0016,2499.0,2498.8,2.3561]
[1724860935146,4.00221,2498.7,2498.4,2.475]
[1724860935322,4.00239,2498.6,2498.1,2.6077]
[1724860935630,4.00249,2498.5,2498.2,0.661079]
[1724860935843,2.4624,2498.7,2497.6,2.3077]
[1724860935981,4.00352,2497.8,2497.6,2.3077]
[1724860936187,0.56330189,2499.1,2497.0,0.75433229]
[1724860936188,4.00455,2497.2,2497.0,0.75433229]
[1724860936442,4.00389,2497.6,2496.8,2.3033]
[1724860936589,4.00474,2497.1,2496.8,2.55302262]
[1724860936791,4.00526,2496.8,2496.3,2.2746]
[1724860937035,4.00524,2496.8,2496.4,0.628059]
[1724860938022,8.01048,2496.8,2496.4,0.628059]
[1724860938225,4.00524,2496.8,2496.3,2.2746]
[1724860938765,8.00983,2497.0,2496.3,2.2746]
[1724860938967,7.00425,2497.4,2496.6,4.00534]
[1724860939322,4.00498,2496.9,2496.5,2.3531]
[1724860939517,4.00498,2496.9,2496.5,2.58841]
[1724860939767,8.01006,2496.9,2496.5,2.58841]
[1724860939916,4.00465,2497.1,2496.6,0.63348391]
[1724860940331,4.00499,2496.9,2496.6,0.63348391]
[1724860940625,4.00499,2496.9,2496.6,0.9556733]
[1724860940971,8.00942,2497.1,2496.6,0.9556733]
[1724860941260,4.00498,2496.9,2496.6,0.9556733]
[1724860941556,8.00942,2497.1,2496.6,0.9556733]
[1724860941762,8.00942,2497.1,2496.7,0.33087733]
[1724860941932,4.00465,2497.1,2496.8,0.55]
[1724860942134,4.00465,2497.1,2496.8,0.63331427]
[1724860942326,8.0094,2497.1,2496.8,0.55]
[1724860942522,4.00441,2497.3,2496.8,0.55]
[1724860942890,4.00375,2497.7,2496.9,2.57848963]
[1724860943024,4.00334,2498.0,2497.0,0.86284896]
[1724860943364,4.00403,2497.5,2497.1,0.08451358]
[1724860943535,8.00812,2497.5,2497.2,0.55]
[1724860943870,8.00885,2497.3,2496.9,2.4984]
[1724860944023,4.00439,2497.3,2497.0,0.79984]
[1724860944228,4.00376,2497.7,2497.1,0.08008655]
[1724860944459,4.00345,2497.9,2497.3,2.3537]
[1724860944621,4.0034,2497.9,2497.4,0.63006811]
[1724860945120,4.00262,2498.4,2497.4,0.63006811]
[1724860945323,4.00345,2497.9,2497.5,0.29837681]
[1724860945554,4.00345,2497.9,2497.3,2.3537]
[1724860945555,4.00345,2497.9,2497.6,0.55]
[1724860945760,0.400262,2498.3,2497.3,2.3537]
[1724860945761,4.00368,2497.7,2497.3,2.3537]
[1724860945919,4.00368,2497.7,2497.4,0.55]
[1724860946538,4.00385,2497.6,2497.4,0.55]
[1724860946841,4.004,2497.5,2497.4,0.55]
[1724860947042,4.00368,2497.7,2497.4,0.55]
[1724860947278,4.00368,2497.7,2497.5,0.313907]
[1724860947866,8.00746,2497.7,2497.5,0.313907]
[1724860948066,0.400262,2498.3,2497.5,0.313907]
[1724860948067,4.00348,2497.9,2497.6,0.55]
[1724860948238,4.00291,2498.2,2496.6,2.4478]
[1724860948582,4.00507,2496.9,2496.6,2.4478]
[1724860948752,4.00507,2496.9,2496.2,2.4478]
[1724860948753,4.00565,2496.5,2496.2,2.4478]
[1724860948949,8.01136,2496.5,2496.2,2.4478]
[1724860949281,4.00592,2496.3,2496.2,2.69258]
[1724860949503,4.00592,2496.3,2495.5,2.4192]
[1724860950084,4.00633,2496.1,2495.6,0.0834111]
[1724860950379,4.00633,2496.1,2495.6,0.37379221]
[1724860951677,4.00561,2496.5,2495.6,0.37379221]
[1724860951984,4.00689,2495.7,2495.6,0.0834111]
[1724860952341,8.01378,2495.7,2495.6,0.0834111]
[1724860952539,4.00729,2495.5,2495.2,2.2579]
[1724860952773,4.00698,2495.7,2495.2,2.48369]
[1724860952975,4.00639,2496.1,2495.2,2.48369]
[1724860953187,4.0065,2496.0,2495.3,0.41217468]
[1724860953478,4.0065,2496.0,2495.3,0.33203481]
[1724860953676,4.0065,2496.0,2495.4,0.55]
[1724860953849,4.00636,2496.1,2495.5,0.08012738]
[1724860954176,4.00636,2496.1,2495.6,0.55]
[1724860954563,4.00636,2496.1,2495.7,0.08332621]
[1724860954767,4.00636,2496.1,2495.8,0.55]
[1724860954768,4.00643,2496.0,2495.8,0.55]
[1724860955273,4.00657,2495.9,2495.8,0.55]
[1724860955691,8.01292,2496.0,2495.8,0.55]
[1724860955841,4.00704,2495.7,2495.3,0.248369]
[1724860956041,4.00662,2495.9,2495.4,0.63454726]
[1724860956443,4.00684,2495.8,2495.4,0.63454726]
[1724860956644,4.00689,2495.7,2495.4,0.63454726]
[1724860957050,4.00666,2495.9,2495.5,0.0801358]
[1724860957383,4.00689,2495.7,2495.6,0.63437746]
[1724860957593,4.00689,2495.7,2495.6,0.08437746]
[1724860957744,4.00689,2495.7,2495.6,0.63437746]
[1724860957944,4.00689,2495.7,2495.6,0.55]
[1724860958144,4.00689,2495.7,2495.6,0.63437746]
[1724860959382,8.01357,2495.8,2495.6,0.63437746]
[1724860959585,4.00674,2495.8,2495.7,0.55]
[1724860959783,4.00656,2496.0,2495.8,2.353]
[1724860959995,3.0,2496.4,2495.7,0.55]
[1724860960186,4.00641,2496.0,2495.9,0.08412281]
[1724860960358,8.01314,2495.9,2495.8,0.08420768]
[1724860960547,4.00721,2495.5,2495.4,2.353]
[1724860960748,2.74061,2496.1,2494.5,37.4187]
[1724860961110,4.00818,2494.9,2494.6,4.10128679]
[1724860961281,8.01698,2494.7,2494.6,0.08635123]
[1724860961596,4.00849,2494.7,2494.6,0.08635123]
[1724860961892,4.00849,2494.7,2494.5,2.4187]
[1724860962259,4.00846,2494.8,2494.5,2.4187]
[1724860962460,4.00865,2494.6,2494.5,2.4187]
[1724860962970,4.00865,2494.6,2493.8,2.2918]
[1724860963498,4.00839,2494.8,2494.0,2.3844]
[1724860963685,8.01685,2494.8,2494.0,2.3844]
[1724860963887,4.00839,2494.8,2494.1,0.08677612]
[1724860964091,4.00875,2494.6,2494.2,0.55]
[1724860964262,4.00886,2494.5,2494.2,0.08669113]
[1724860964462,0.801761,2494.5,2494.2,0.08669113]
[1724860964663,3.0,2494.9,2493.4,2.4921]
[1724860964863,3.0,2494.9,2493.5,0.33649622]
[1724860964864,4.00981,2493.9,2493.5,0.33649622]
[1724860965113,4.00981,2493.9,2493.5,0.08728622]
[1724860965292,4.00958,2494.1,2493.5,0.08728622]
[1724860965612,4.00989,2493.9,2493.4,2.4921]
[1724860965776,4.00989,2493.9,2493.6,0.08720118]
[1724860965979,4.00989,2493.9,2493.5,0.08728622]
[1724860966193,4.00954,2494.1,2493.7,0.08711616]
[1724860966499,2.3673,2494.7,2493.8,0.08703114]
[1724860966500,4.00852,2494.7,2493.8,0.08703114]
[1724860966675,4.00793,2495.1,2493.9,2.48626844]
[1724860967012,4.00758,2495.3,2494.1,2.2816]
[1724860967215,4.00797,2495.1,2494.2,0.31633594]
[1724860967378,4.00797,2495.1,2494.3,0.0801597]
[1724860967578,8.01593,2495.1,2494.3,0.26846271]
[1724860967781,2.4516,2495.7,2494.4,3.08092117]
[1724860967782,4.00827,2494.9,2494.4,3.08092117]
[1724860967996,4.0085,2494.7,2494.5,0.30809212]
[1724860968180,8.01656,2494.9,2494.6,0.55]
[1724860968379,4.00849,2494.7,2494.6,1.03025256]
[1724860968577,4.00833,2494.8,2494.6,0.63635123]
[1724860968802,4.00805,2495.0,2494.6,0.63635123]
[1724860969112,4.00776,2495.2,2494.7,0.08016039]
[1724860969311,4.00776,2495.2,2494.6,0.63635123]
[1724860969312,4.00812,2495.0,2494.8,0.55]
[1724860969513,4.00817,2494.9,2494.8,0.08670457]
[1724860969718,4.00817,2494.9,2494.8,0.55]
[1724860970090,4.00817,2494.9,2494.7,0.55]
[1724860970485,4.00822,2494.9,2494.7,0.55]
[1724860970716,4.00727,2495.5,2494.4,2.4444]
[1724860970717,4.00876,2494.6,2494.4,2.4444]
[1724860971020,4.00876,2494.6,2492.9,0.05]
[1724860971021,4.00907,2494.4,2494.1,2.4068]
[1724860971169,4.00842,2494.8,2494.2,0.24068]
[1724860971369,4.00842,2494.8,2494.1,2.4068]
[1724860971370,4.00818,2494.9,2494.1,2.4068]
[1724860971599,4.00859,2494.7,2494.1,2.4068]
[1724860972271,8.01722,2494.7,2494.1,2.4068]
[1724860972469,4.00859,2494.7,2494.2,0.79068]
[1724860972711,4.00877,2494.6,2494.2,0.79068]
[1724860972913,4.00825,2494.9,2494.2,0.79068]
[1724860973121,4.00825,2494.9,2494.3,0.319748]
[1724860973419,4.00788,2495.1,2494.5,2.378]
[1724860973625,4.00788,2495.1,2494.6,0.93097655]
[1724860974678,4.00759,2495.3,2494.6,0.93097655]
[1724860975073,4.00797,2495.1,2494.6,0.93097655]
[1724860975305,6.36734,2495.3,2493.9,3.62760986]
[1724860975509,4.00859,2494.7,2494.0,2.378]
[1724860976116,8.01717,2494.7,2494.0,2.378]
[1724860976367,6.3673,2495.3,2494.0,2.378]
[1724860976368,4.00838,2494.8,2494.0,2.378]
[1724860976648,4.00897,2494.5,2494.0,2.378]
[1724860977011,4.00867,2494.6,2494.0,2.378]
[1724860977407,4.00857,2494.7,2494.0,2.378]
[1724860977733,4.00878,2494.6,2494.0,2.378]
[1724860977934,4.00906,2494.4,2494.1,0.55]
[1724860978161,4.54385,2495.1,2494.0,2.378]
[1724860978162,4.00946,2494.1,2494.0,2.378]
[1724860978358,3.17221663,2494.1,2494.0,2.378]
[1724860978912,4.00876,2494.6,2494.0,2.378]
[1724860979222,4.00884,2494.5,2494.1,0.2378]
[1724860979446,4.00884,2494.5,2494.1,0.08759743]
[1724860979447,4.00886,2494.5,2494.1,0.08759743]
[1724860979622,8.01777,2494.5,2494.1,0.08759743]
[1724860979827,8.01777,2494.5,2494.2,0.55]
[1724860980206,4.00914,2494.3,2494.0,2.378]
[1724860980367,4.00946,2494.1,2493.7,3.09489984]
[1724860980567,4.00946,2494.1,2493.8,0.30948998]
[1724860980806,4.00914,2494.3,2493.8,0.30948998]
[1724860981310,8.01838,2494.3,2493.8,0.30948998]
[1724860981478,4.0089,2494.5,2493.9,0.55]
[1724860981680,4.00794,2495.1,2494.0,2.54737874]
[1724860981883,4.00794,2495.1,2493.9,0.55]
[1724860981884,4.00713,2495.6,2494.3,2.4672]
[1724860982069,4.00722,2495.5,2494.6,2.4672]
[1724860982268,2.4764,2496.1,2494.8,2.4672]
[1724860982622,2.4764,2496.1,2495.0,2.4672]
[1724860982623,4.00667,2495.9,2495.0,2.4672]
[1724860982814,4.00695,2495.7,2495.1,0.38987213]
[1724860983108,4.00747,2495.4,2495.0,2.4672]
[1724860983419,4.00747,2495.4,2495.1,0.55]
[1724860983715,4.00769,2495.2,2495.1,0.55]
[1724860984005,4.00755,2495.3,2495.1,0.55]
[1724860984174,4.00769,2495.2,2495.1,0.55]
[1724860984573,4.00804,2495.0,2494.4,2.92596502]
[1724860984777,4.00781,2495.2,2494.5,0.62756502]
[1724860985010,4.00828,2494.9,2494.5,0.62756502]
[1724860985295,4.00828,2494.9,2493.8,0.30948998]
[1724860985296,4.00884,2494.5,2494.2,0.62764645]
[1724860985475,2.4953,2495.4,2494.6,0.08686223]
[1724860985476,4.00854,2494.7,2494.6,0.08686223]
[1724860985803,3.0,2495.5,2494.7,2.41]
[1724860985804,4.00814,2495.0,2494.7,2.41]
[1724860986009,4.00797,2495.1,2494.7,2.41]
[1724860986167,4.00797,2495.1,2494.8,0.08669232]
[1724860986365,4.00797,2495.1,2494.7,2.651]
[1724860986366,4.00804,2495.0,2494.7,2.41]
[1724860986562,3.700709,2495.5,2494.7,2.41]
[1724860986563,4.00778,2495.2,2494.7,2.41]
[1724860986793,4.00778,2495.2,2494.8,0.63669232]
[1724860987109,4.00802,2495.0,2494.8,0.63669232]
[1724860987319,8.01634,2494.9,2494.8,0.08669232]
[1724860987467,4.00834,2494.8,2494.2,2.41]
[1724860987794,4.00834,2494.8,2494.3,0.08711715]
[1724860987995,0.400778,2495.2,2494.3,0.08711715]
[1724860988309,3.0,2495.5,2494.4,0.08703217]
[1724860988617,6.44808,2496.2,2494.6,2.4868]
[1724860988919,0.644808,2496.1,2494.7,1.02862231]
[1724860989123,0.644808,2496.1,2494.8,0.08014905]
[1724860989280,0.644808,2496.1,2495.0,2.4868]
[1724860989486,2.4419,2496.2,2495.1,0.63643751]
[1724860989685,2.4419,2496.2,2495.2,4.00756]
[1724860989887,4.55551856,2496.6,2495.4,4.00737]
[1724860990085,0.48843337,2497.1,2495.8,4.0066]
[1724860990086,2.2765,2496.9,2495.8,4.0066]
[1724860990326,2.2765,2496.9,2496.0,4.00635]
[1724860990506,2.2765,2496.9,2495.9,4.49292831]
[1724860990710,2.2765,2496.9,2496.1,0.08558857]
[1724860990910,2.2765,2496.9,2496.0,0.63567344]
[1724860991116,2.2765,2496.9,2496.2,0.08550372]
[1724860991445,2.2765,2496.9,2496.1,0.08558857]
[1724860991584,4.55436856,2497.3,2496.4,4.00575]
[1724860991585,2.2765,2497.3,2496.4,4.00575]
[1724860991785,2.2765,2497.3,2496.5,4.00545]
[1724860992013,2.50415,2497.3,2496.6,4.0054]
[1724860992188,0.22765,2497.3,2496.7,4.55517]
[1724860992501,2.2765,2497.6,2496.7,0.63468415]
[1724860993497,5.2765,2497.6,2496.8,4.00506]
[1724860993702,5.2765,2497.6,2496.7,0.63468415]
[1724860994034,5.2765,2497.6,2496.4,4.00569]
[1724860994035,4.00443,2497.3,2496.9,0.08414973]
[1724860994189,3.0,2497.2,2496.9,0.08414973]
[1724860994388,3.0,2497.2,2496.4,4.00575]
[1724860994728,0.3,2497.1,2496.5,0.084489]
[1724860994930,7.00436,2497.3,2496.5,0.084489]
[1724860995185,3.0,2497.3,2496.6,4.00534]
[1724860995333,0.3,2497.3,2496.8,4.005]
[1724860995537,3.0,2497.5,2497.0,4.00471]
[1724860995700,2.2765,2497.6,2496.9,4.08897973]
[1724860995898,0.22765,2497.5,2497.1,0.08398013]
[1724860996259,0.22765,2497.5,2497.1,4.00463]
[1724860996413,0.22765,2497.5,2497.2,0.08389534]
[1724860996736,2.3771,2497.9,2497.4,4.00402]
[1724860996945,2.3771,2497.9,2497.2,0.08389534]
[1724860997237,2.3771,2498.5,2498.0,4.00308]
[1724860997442,2.78733324,2498.9,2498.4,4.00256]
[1724860997937,2.3687,2499.3,2498.5,0.08279371]
[1724860998243,7.48,2499.7,2498.5,0.08279371]
[1724860998244,0.54996856,2499.7,2498.8,4.00182]
[1724860998393,2.4383212,2499.8,2499.7,4.00048]
[1724860998394,0.0696212,2499.8,2499.7,4.00048]
[1724860998599,3.99925,2500.5,2499.7,4.00037]
[1724860998829,3.99911,2500.6,2499.7,0.08088401]
[1724860998830,3.99994,2500.1,2499.7,0.08088401]
[1724860999033,4.0,2500.0,2499.7,0.08088401]
[1724860999252,4.00027,2499.9,2499.1,4.00135]
[1724860999460,8.00054,2499.9,2499.8,0.0807994]
[1724860999658,4.00075,2499.6,2498.8,4.00176]
[1724861000012,1.036924,2499.8,2498.6,4.00216]
[1724861000013,4.00093,2499.5,2498.9,0.08156115]
[1724861000313,4.00098,2499.4,2498.8,4.00189]
[1724861000542,4.00098,2499.4,2499.0,0.08147648]
[1724861000543,0.800191,2499.4,2499.0,0.08147648]
[1724861000723,4.00141,2499.2,2498.9,0.08156115]
[1724861000937,4.00121,2499.3,2499.1,0.08139182]
[1724861001272,4.00121,2499.3,2499.0,0.08147648]
[1724861001273,3.0,2499.2,2499.0,0.08147648]
[1724861001548,3.0,2499.2,2498.7,4.00198]
[1724861002111,3.0,2499.2,2498.6,0.400213]
[1724861002451,3.0,2499.2,2498.2,6.40614]
[1724861002452,3.0,2499.4,2499.0,4.00153]
[1724861002752,7.00098,2499.4,2498.8,4.00183]
[1724861002916,4.100185,2499.4,2498.8,4.0018]
[1724861003117,4.00023,2499.9,2499.3,4.00098]
[1724861003337,3.99988,2500.1,2499.3,8.00197]
[1724861003523,0.399988,2500.1,2499.3,4.00098]
[1724861003735,4.00033,2499.8,2499.1,4.00131]
[1724861003936,8.00061,2499.9,2499.3,4.0011]
[1724861004312,4.00039,2499.8,2499.3,4.0011]
[1724861005339,3.0,2500.0,2499.5,4.00075]
[1724861005551,3.99957,2500.3,2499.5,4.0007]
[1724861005720,3.99957,2500.3,2499.7,8.00084]
[1724861006236,3.99984,2500.1,2499.6,0.55]
[1724861006448,3.99984,2500.1,2499.5,8.00137]
[1724861006616,3.99984,2500.1,2499.5,4.00067]
[1724861007753,0.399957,2500.2,2499.0,4.00153]
[1724861007754,0.399957,2500.2,2499.7,4.00036]
[1724861008060,3.0,2500.2,2499.9,4.00015]
[1724861008414,6.99947,2500.4,2499.7,8.00073]
[1724861008619,7.399397,2500.4,2499.7,8.00073]
[1724861008858,3.99952,2500.3,2499.7,4.00036]
[1724861009063,3.0,2500.2,2499.7,4.00036]
[1724861009230,0.699952,2500.1,2499.7,4.00036]
[1724861009565,2.3188,2500.8,2500.1,3.9997]
[1724861009716,1.379743,2500.8,2500.1,3.9997]
[1724861009915,7.99795,2500.7,2500.1,3.9997]
[1724861010118,3.99914,2500.6,2500.0,3.99999]
[1724861010378,3.99914,2500.6,2499.7,7.29]
[1724861010379,3.99952,2500.3,2499.7,7.29]
[1724861010518,3.99986,2500.1,2499.7,7.29]
[1724861010719,4.0,2500.0,2499.3,4.001]
[1724861011061,0.399986,2500.0,2499.5,4.00066]
[1724861011356,3.99986,2500.1,2499.5,4.00066]
[1724861011853,3.99986,2500.1,2499.5,8.00134]
[1724861012015,3.9996,2500.3,2499.7,4.00035]
[1724861012217,3.0,2500.2,2499.7,4.00035]
[1724861012425,4.798895,2500.6,2499.8,6.3346]
[1724861012659,3.99895,2500.7,2499.8,6.3346]
[1724861012660,3.99895,2500.7,2500.0,3.99995]
[1724861012953,3.99895,2500.7,2500.2,3.99963]
[1724861013111,3.99865,2500.9,2500.2,3.99963]
[1724861013311,3.99865,2500.9,2500.2,3.99958]
[1724861013554,2.479,2501.1,2500.4,7.99847]
[1724861013555,3.99835,2501.1,2500.4,7.99847]
[1724861013757,0.2479,2501.0,2500.4,7.99847]
[1724861014055,6.4762,2501.8,2500.7,3.99879]
[1724861014261,3.99801,2501.3,2500.7,3.99879]
[1724861014616,0.5316801,2501.5,2500.5,0.55]
[1724861014856,3.99833,2501.1,2500.5,0.55]
[1724861015156,4.398243,2501.0,2500.5,0.55]
[1724861015363,3.99876,2500.8,2500.3,7.29]
[1724861015572,7.99776,2500.7,2500.6,0.07595325]
[1724861015732,7.99776,2500.7,2499.3,7.29]
[1724861015733,3.99916,2500.6,2499.3,7.29]
[1724861016063,3.99962,2500.3,2499.7,4.00038]
[1724861016363,3.99927,2500.5,2499.8,4.0769299]
[1724861016532,0.4799046,2500.4,2499.8,4.0769299]
[1724861016737,4.4792646,2500.4,2499.8,4.0768399]
[1724861017439,0.4799046,2500.4,2499.8,8.0770599]
[1724861017632,7.99862,2500.5,2499.9,4.00013]
[1724861018031,0.799776,2500.6,2500.2,3.99959]
[1724861018256,3.99937,2500.4,2500.0,0.6264607]
[1724861018469,3.0,2500.7,2500.3,0.07620694]
[1724861018633,0.3,2500.7,2500.2,7.99924]
[1724861018837,0.3,2500.7,2500.4,0.07612237]
[1724861019132,0.3,2500.7,2498.9,7.38]
[1724861019133,2.425,2500.0,2498.9,7.38]
[1724861019332,4.00128,2499.2,2498.8,2.3616]
[1724861019530,4.00128,2499.2,2498.4,9.7416]
[1724861019965,7.00099,2499.4,2498.5,4.08242724]
[1724861020260,3.0,2499.3,2498.6,4.0022]
[1724861020431,3.0,2499.3,2498.5,4.00238]
[1724861020635,4.00036,2499.8,2498.4,9.7416]
[1724861020835,7.0005,2499.7,2498.6,7.38]
[1724861021045,0.70005,2499.6,2498.6,9.668576]
[1724861021265,3.70005,2499.6,2498.8,4.00179]
[1724861021475,3.70005,2499.6,2498.6,13.670796]
[1724861021476,4.00033,2499.8,2499.1,2.4287]
[1724861021781,0.2425,2499.9,2499.1,6.43011]
[1724861021955,0.2425,2499.9,2499.2,0.55]
[1724861022542,0.2425,2499.9,2499.1,2.4287]
[1724861022850,4.00025,2499.9,2499.1,2.4287]
[1724861023057,4.00032,2499.8,2499.1,2.4287]
[1724861023251,4.00054,2499.7,2499.1,2.4287]
[1724861023556,4.00069,2499.6,2499.1,2.4287]
[1724861023752,0.800086,2499.7,2499.1,2.4287]
[1724861023934,3.0,2500.2,2499.1,2.4287]
[1724861023935,6.99973,2500.2,2499.2,0.55]
[1724861024140,0.55793046,2500.8,2499.2,0.55]
[1724861024141,2.4318,2500.8,2499.3,4.00098]
[1724861024364,3.99915,2500.6,2499.4,7.96]
[1724861024680,4.00001,2500.0,2499.4,7.41]
[1724861024838,0.79997,2500.0,2499.2,7.96]
[1724861025035,3.99984,2500.1,2499.3,4.0011]
[1724861025247,3.99984,2500.1,2499.4,0.55]
[1724861025628,4.399529,2500.3,2499.4,4.52708581]
[1724861025768,0.82827806,2500.2,2499.4,4.52708581]
[1724861025965,3.99939,2500.4,2499.5,4.08079308]
[1724861026176,3.0,2500.3,2499.6,6.41783023]
[1724861026377,3.0,2500.3,2499.6,6.33783]
[1724861026586,3.699939,2500.3,2499.6,6.33783]
[1724861026804,3.99939,2500.4,2499.6,6.33783]
[1724861026805,3.99939,2500.4,2499.7,0.07492879]
[1724861026979,3.99911,2500.6,2499.7,4.15529551]
[1724861026980,3.99922,2500.5,2499.7,4.15529551]
[1724861027179,3.99911,2500.6,2499.7,4.15529551]
[1724861027366,4.399111,2500.5,2499.7,4.15529551]
[1724861027710,4.399141,2500.5,2499.8,0.55]
[1724861027895,4.399141,2500.5,2499.9,0.07475957]
[1724861028064,3.99938,2500.4,2499.9,0.07475957]
[1724861028409,4.8392201,2500.4,2499.9,0.07475957]
[1724861028910,0.8398401,2500.4,2499.9,0.07475957]
[1724861029062,3.99911,2500.6,2499.9,0.07475957]
[1724861029063,6.99921,2500.5,2499.9,0.07475957]
[1724861029258,3.99938,2500.4,2499.9,0.07475957]
[1724861029902,3.0,2500.5,2499.9,0.1547563]
[1724861030231,3.99901,2500.7,2500.0,3.99999]
[1724861030517,3.99847,2501.0,2500.2,6.33007]
[1724861030662,3.99916,2500.6,2500.3,0.07442122]
[1724861030872,3.99936,2500.4,2500.2,2.3305]
[1724861031177,4.799212,2500.4,2500.3,0.07376639]
[1724861031396,3.99936,2500.4,2500.3,0.07376639]
[1724861031705,3.99936,2500.4,2500.3,0.07363306]
[1724861031907,3.99936,2500.4,2499.9,7.41]
[1724861032078,4.0,2500.0,2499.7,2.3819]
[1724861032406,3.99973,2500.2,2499.7,2.3819]
[1724861032608,3.99893,2500.7,2499.4,7.41]
[1724861032832,8.00021,2500.0,2499.4,7.41]
[1724861033044,4.00008,2500.0,2499.4,7.41]
[1724861033333,4.00041,2499.8,2499.4,7.41]
[1724861033509,8.00085,2499.8,2499.4,7.41]
[1724861033710,8.00083,2499.8,2499.4,7.41]
[1724861034239,4.00041,2499.8,2499.4,7.41]
[1724861034421,8.00082,2499.8,2499.4,7.41]
[1724861034588,4.0008,2499.5,2499.4,7.41]
[1724861034788,4.00079,2499.6,2499.2,2.3811]
[1724861035312,4.00041,2499.8,2499.2,2.3811]
[1724861035486,7.00009,2500.0,2499.2,2.3811]
[1724861035817,4.00034,2499.8,2499.2,2.3811]
[1724861036023,4.00065,2499.6,2499.2,2.3811]
[1724861036181,4.00081,2499.5,2499.0,7.41]
[1724861036386,8.00142,2499.6,2499.1,0.55]
[1724861036609,8.00142,2499.6,2499.0,0.55]
[1724861036923,4.800852,2499.6,2498.9,2.2575]
[1724861037252,7.00008,2500.0,2499.3,4.00111]
[1724861037756,11.00023,2500.0,2499.3,4.00111]
[1724861037953,3.0,2500.0,2499.1,11.4113]
[1724861038257,4.00089,2499.5,2499.1,7.41]
[1724861038468,4.00115,2499.3,2498.9,2.2575]
[1724861039056,8.00179,2499.5,2498.9,2.2575]
[1724861039365,4.00111,2499.4,2498.9,2.2575]
[1724861039531,4.00112,2499.3,2499.0,0.55]
[1724861039926,4.00089,2499.5,2499.0,0.55]
[1724861039927,8.00183,2499.5,2499.0,0.55]
[1724861040129,4.00089,2499.5,2499.0,0.55]
[1724861040387,4.00089,2499.5,2499.0,1.97194]
[1724861040388,8.00181,2499.5,2499.0,1.97194]
[1724861040530,4.00112,2499.3,2499.0,0.55]
[1724861040729,8.00233,2499.3,2499.0,0.55]
[1724861040971,4.00148,2499.1,2498.9,2.2575]
[1724861041135,4.00148,2499.1,2498.8,7.41]
[1724861041468,4.00169,2499.0,2498.6,2.3038]
[1724861042166,4.00178,2498.9,2498.6,2.3038]
[1724861042376,8.00307,2499.1,2498.6,2.3038]
[1724861042669,4.00161,2499.0,2498.6,2.3038]
[1724861043329,4.00179,2498.9,2498.6,2.3038]
[1724861043534,4.00208,2498.7,2498.4,7.41]
[1724861044047,4.00208,2498.7,2498.0,0.83014599]
[1724861044048,4.00196,2498.8,2498.0,2.3183]
[1724861044250,3.0,2499.0,2498.0,2.3183]
[1724861044251,4.00251,2498.5,2498.0,2.3183]
[1724861044576,4.00257,2498.4,2498.0,2.3183]
[1724861045147,4.00288,2498.2,2498.0,2.3183]
[1724861045360,4.00263,2498.4,2498.0,2.3183]
[1724861045544,4.00263,2498.4,2498.1,0.07692032]
[1724861045747,8.00528,2498.4,2498.1,0.07692032]
[1724861045948,4.00273,2498.3,2498.1,0.07692032]
[1724861046172,4.00288,2498.2,2498.1,0.07692032]
[1724861046645,8.00533,2498.4,2498.1,0.07692032]
[1724861046986,8.00533,2498.4,2497.6,9.6947]
[1724861046987,4.00274,2498.3,2498.2,0.0768356]
[1724861047197,4.00274,2498.3,2497.6,2.2847]
[1724861047345,0.67086406,2498.3,2498.2,0.0768356]
[1724861047545,0.67086406,2498.3,2497.4,7.41]
[1724861047546,4.00364,2497.8,2497.4,7.41]
[1724861047745,4.00298,2498.2,2497.3,2.3546]
[1724861047972,4.00259,2498.4,2497.7,4.00359]
[1724861048385,4.00233,2498.6,2497.9,6.35794]
[1724861048650,4.0025,2498.5,2497.9,6.43799601]
[1724861048959,4.00258,2498.4,2497.9,3.47880861]
[1724861049162,4.00258,2498.4,2497.9,2.3546]
[1724861049981,4.00289,2498.2,2497.9,2.3546]
[1724861050395,4.00273,2498.3,2497.9,2.3546]
[1724861050546,4.0025,2498.5,2497.9,2.3546]
[1724861050752,4.00242,2498.5,2497.9,2.59806609]
[1724861050947,4.00242,2498.5,2498.0,0.55]
[1724861051313,8.00429,2498.7,2498.0,8.6362432]
[1724861051597,4.00225,2498.6,2498.0,4.94793981]
[1724861051808,4.00184,2498.9,2498.0,0.86480661]
[1724861051951,4.00193,2498.8,2498.2,4.00274]
[1724861052151,4.00184,2498.9,2498.3,0.55]
[1724861052412,4.00151,2499.1,2498.5,4.0023]
[1724861052558,4.00121,2499.3,2498.7,4.00206]
[1724861052764,4.00089,2499.5,2498.8,6.3315]
[1724861053107,4.00098,2499.4,2498.9,1.18315]
[1724861053259,4.00089,2499.5,2498.9,1.18315]
[1724861053456,4.00104,2499.4,2498.9,1.18315]